Cogmind - Beta 16 @@@ ROGUE MODE // 2026.01.28 @ 23:15:54 Player: Zaros426 Result: Destroyed by CF-MPW(R) with Subdweller Laser Performance ------------- Evolutions (0) 0 Regions Visited (3) 600 Robots Destroyed (52) 260 Value Destroyed (829) 829 Prototype IDs (14) 280 Alien Tech Used (0) 0 Bonus (76) 76 TOTAL SCORE: 2045 Bonus ------- Follower Combat Kills 76 Cogmind --------- Core Integrity 0/250 Matter 276/300 Energy 179/200 System Corruption 0% Temperature Cool (6) Movement Walking (130) Location -10/Subcaves Parts ------- > --- POWER (1) -------- Subdweller Power Source > --- PROPULSION (2) --- Cargo Legs > --- UTILITY (2+2) ---- Scrap Shield > --- WEAPON (2) ------- Subdweller Beam Cannon Subdweller Machine Gun > --- INVENTORY (5) ---- Light Treads Light Treads Large Storage Unit Targeting Computer Subdweller Laser Peak State ------------ > --- POWER ------------ Light Angular Momentum Engine > --- PROPULSION ------- Cargo Legs > --- UTILITY ---------- High-capacity Storage Unit Seismic Detector > --- WEAPON ----------- Subdweller Beam Cannon Makeshift Axe > --- INVENTORY -------- Subdweller Power Source Subdweller Power Source Light Treads Light Treads Large Storage Unit High-capacity Matter Pod Structural Scanner Improved Terrain Scanner Seismic Detector Targeting Computer Scrap Shield Subdweller Laser Subdweller Laser Subdweller Machine Gun Barrage Gun Datajack Mining Laser [Rating: 31] Favorites ----------- Power Ion Engine Engine Ion Engine Propulsion Light Treads Treads Light Treads Leg Cargo Legs Utility Seismic Detector Device Seismic Detector Storage Large Storage Unit Processor Signal Interpreter Protection Light Armor Plating Weapon Light Cannon Energy Gun Subdweller Laser Energy Cannon Subdweller Beam Cannon Ballistic Gun Assault Rifle Ballistic Cannon Light Cannon Special Weapon Mining Laser Slashing Weapon Makeshift Axe Build | -11 -10 -10 -10 ------- Run | Yrd Mat Min Sub Slots Evolved . | . . . . Power . | . . . . Propulsion . | . . . . Utility . | . . . . Weapon . | . . . . Parts Attached 32 | 7 8 2 15 Power 5 | 1 . 1 3 Engine 5 | 1 . 1 3 Core . | . . . . Reactor . | . . . . Propulsion 5 | 2 1 . 2 Treads 4 | 2 1 . 1 Leg 1 | . . . 1 Wheel . | . . . . Hover . | . . . . Flight . | . . . . Utility 9 | 2 5 . 2 Device 3 | 1 1 . 1 Storage 3 | 1 2 . . Processor 1 | . 1 . . Hackware . | . . . . Protection 2 | . 1 . 1 Artifact . | . . . . Weapon 13 | 2 2 1 8 Energy Gun 1 | . . . 1 Energy Cannon 1 | . . . 1 Ballistic Gun 6 | 2 . . 4 Ballistic Cannon 3 | . 1 1 1 Launcher . | . . . . Special Weapon 1 | . 1 . . Impact Weapon . | . . . . Slashing Weapon 1 | . . . 1 Piercing Weapon . | . . . . Special Melee Weapon . | . . . . Unidentified Prototypes . | . . . . Parts Lost 5 | . . 1 4 Power . | . . . . Propulsion 1 | . . . 1 Utility 2 | . . 1 1 Weapon 2 | . . . 2 Highest Loss Streak 2 | . . 1 2 To Critical Strikes . | . . . . Average Backups 13 | 2 10 14 17 Power 1 | . 1 1 2 Propulsion 2 | . 2 2 3 Utility 6 | . 4 7 7 Weapon 2 | . 2 2 3 Tool/Special . | . . . . Unused Backups 13 | . 1 1 11 Power 1 | . . . 1 Propulsion 3 | . 1 . 2 Utility 6 | . . . 6 Weapon 2 | . . 1 1 Tool/Special 1 | . . . 1 Average Slot Usage (%) 90 | . 99 100 74 Engine 13 | . 14 14 11 Treads 20 | . 28 28 8 Leg 2 | . . . 7 Device 9 | . 12 7 7 Storage 13 | . 14 14 11 Protection 3 | . . 6 3 Ballistic Gun 8 | . 15 2 7 Ballistic Cannon 15 | . 12 25 10 Peak Build Rating 31 | 7 8 8 31 Average Rating 12 | 6 7 7 20 On Entrance 5 | . 7 8 8 Avg Prop Armor Cover (%) . | . . . . Naked Turns . | . . . . Heaviest Build 58 | 14 53 34 58 Greatest Support 55 | 40 40 40 55 Greatest Overweight (x) 1 | . 1 . 1 Average Overweight (x) . | . . . . Largest Inventory Capacity 20 | 8 20 15 20 Average Capacity 16 | 7 15 15 18 Most Carried 20 | 4 13 15 20 Average Carried 13 | 2 10 14 17 Final Capacity 15 | 8 15 15 5 Final Carried 15 | 4 12 15 5 Class Distribution -------------------- 99% | Mutant Dominant Class ---------------- Mutant | -10/Materials Mutant | -10/Mines Mutant | -10/Subcaves Resources | -11 -10 -10 -10 ----------- Run | Yrd Mat Min Sub Matter Collected 1767 | 362 636 251 518 Remotely . | . . . . Salvage Created 1269 | 184 494 215 376 Parts 107 | 16 39 26 26 Haulers Intercepted 2 | . 2 . . Recyclers Shooed . | . . . . Parts Field Recycled . | . . . . Retrieved Matter . | . . . . Parts Self-Destructed 6 | . . . 6 Prevented . | . . . . Parts Restored . | . . . . Kills | -11 -10 -10 -10 ------- Run | Yrd Mat Min Sub Combat Hostiles Destroyed 27 | . 10 6 11 Guns 10 | . 6 . 4 Cannons 16 | . 4 5 7 AOE 1 | . . 1 . Classes Destroyed 9 | 2 6 . 1 Worker 8 | . 5 3 . Builder 2 | . 1 1 . Tunneler 9 | 6 . 3 . Hauler 2 | . 2 . . Recycler 2 | 1 1 . . Watcher 2 | . 2 . . Swarmer 13 | . 6 4 3 Grunt 6 | . 4 2 . Subdweller 8 | . . . 8 Best Kill Streak 4 | 3 4 2 3 Combat Bots Only 3 | . 3 2 3 Max Kills in Single Turn 2 | 1 1 2 1 Gunslinging . | . . . . Exploded 1 | . . 1 . Melee . | . . . . Uniques/NPCs Destroyed . | . . . . Combat | -11 -10 -10 -10 -------- Run | Yrd Mat Min Sub Hostile Shots Fired 157 | . 59 34 64 Missed 41 | . 15 9 17 Hits 116 | . 44 25 47 Projectile 116 | . 44 25 47 AOE 9 | . 1 . 8 Critical Strikes 3 | . . 1 2 Damage Taken 1724 | . 416 232 1076 Core 255 | . 41 17 197 Absorbed by Shields . | . . . . Core Remaining (%) 100 | 100 . . . Volleys Fired 161 | 23 55 22 61 Largest 2 | 2 2 2 2 Hottest 110 | 40 100 60 110 Shots Fired 312 | 46 108 44 114 Gun 180 | 46 68 . 66 Cannon 130 | . 38 44 48 Launcher . | . . . . Special 2 | . 2 . . Kinetic 292 | 46 106 44 96 Thermal 20 | . 2 . 18 Explosive . | . . . . Electromagnetic . | . . . . Robot Hit Streak 17 | 8 14 6 17 Robot Miss Streak 4 | 3 4 4 3 Penetration Max . | . . . . Secondary Targets 1 | . 1 . . Max Gunslinging Chain 1 | . 1 . . Shots Hit Robots 187 | 27 62 23 75 Core Hits 69 | 12 26 12 19 Critical Kills . | . . . . Critical Parts Destroyed . | . . . . Critical Strikes 7 | . 2 2 3 Blast 6 | . 2 2 2 Sever 1 | . . . 1 Melee Attacks 32 | . . . 32 Impact . | . . . . Slashing 32 | . . . 32 Piercing . | . . . . Sneak Attacks . | . . . . Combat Hostiles . | . . . . Follow-up Attacks . | . . . . Damage Inflicted 4094 | 290 890 494 2420 Guns 1301 | 290 471 . 540 Cannons 1559 | . 419 397 743 Explosions 97 | . . 97 . Melee 1137 | . . . 1137 Ramming . | . . . . Kinetic 2635 | 290 890 397 1058 Thermal 322 | . . 97 225 Explosive . | . . . . Electromagnetic . | . . . . Impact . | . . . . Slashing 1137 | . . . 1137 Piercing . | . . . . Highest Corruption . | . . . . Average Corruption . | . . . . Corruption Purged . | . . . . Corruption Blocked . | . . . . Overload Shots . | . . . . Overflow Damage 190 | . 11 51 128 Projectiles 25 | . 11 14 . Explosions 37 | . . 37 . Melee 128 | . . . 128 Knockbacks 17 | . 6 4 7 Impact . | . . . . Kinetic 14 | . 5 4 5 Secondary 3 | . 1 . 2 Self-Inflicted Damage . | . . . . Shots . | . . . . Rammed . | . . . . Targets Rammed . | . . . . Kicked . | . . . . Crushed . | . . . . Highest Temperature 40 | . 40 27 6 Average Temperature 10 | . 17 8 2 Received Heat Transfer 252 | . 78 36 138 Siege Activations . | . . . . Martial Activations . | . . . . Shielding Activations . | . . . . Robots Disrupted . | . . . . Combat Hostiles . | . . . . Robots Corrupted . | . . . . Combat Hostiles . | . . . . Parts Fried . | . . . . Impact Corruptions . | . . . . Robots Melted . | . . . . Combat Hostiles . | . . . . Parts Melted 2 | . . . 2 Heat Transferred 396 | . . 100 296 Parts Sabotaged . | . . . . Parts Stolen . | . . . . Parts Stripped . | . . . . Power Chain Reactions . | . . . . Alert | -11 -10 -10 -10 ------- Run | Yrd Mat Min Sub Maximum Alert Level . | . . . . Low Security (%) 100 | 100 100 100 . Level 1 . | . . . . Level 2 . | . . . . Level 3 . | . . . . Level 4 . | . . . . Level 5 . | . . . . High Security . | . . . . Max Security . | . . . . Peak Influence 94 | 15 82 94 . Initial 3 | . 3 . . Average 16 | 1 19 16 . Influence Increases 733 | 35 369 251 78 Destroy 0b10 Robot/C 420 | . 200 160 60 Destroy 0b10 Robot/NC 125 | 35 55 35 . Destroy Leader 78 | . 48 20 10 Allied During Kill 28 | . . 20 8 Successful Hack 34 | . 34 . . Disable Machine 30 | . 15 15 . Destroy Structure 3 | . 2 1 . Lose Combat Pursuer 15 | . 15 . . Influence Decreases 733 | 30 371 254 78 Entered New Map 5 | . 2 3 . Time Decay 718 | 30 369 241 78 Lost Part 10 | . . 10 . Squads Dispatched 2 | . 2 . . Investigation 1 | . 1 . . Extermination . | . . . . Reinforcement 1 | . 1 . . Assault . | . . . . Garrison . | . . . . Intercept . | . . . . Searches Triggered . | . . . . Construction Impeded . | . . . . Haulers Reinforced . | . . . . Active Scanning Responses . | . . . . Cargo Convoy Interrupts . | . . . . Stealth | -11 -10 -10 -10 --------- Run | Yrd Mat Min Sub Distress Signals 1 | . 1 . . Communications Jammed . | . . . . Distress Signals . | . . . . Times Spotted 37 | . 16 7 14 Peak Tracking Total 4 | . 4 3 4 Tactical Retreats 1 | . 1 . . Traps | -11 -10 -10 -10 ------- Run | Yrd Mat Min Sub Traps Triggered 1 | . 1 . . Indirectly . | . . . . Trap Hack Attempts . | . . . . Triggered . | . . . . Disarmed . | . . . . Reprogrammed . | . . . . Reused . | . . . . Traps Extracted . | . . . . Installed . | . . . . Triggered . | . . . . Machines | -11 -10 -10 -10 ---------- Run | Yrd Mat Min Sub Machines Disabled 3 | . 1 1 1 Max in Single Turn 1 | . 1 1 1 Machines Repaired . | . . . . Machines Dismantled . | . . . . Machines Sabotaged . | . . . . Overloaded Fab Kills . | . . . . Hacking | -11 -10 -10 -10 --------- Run | Yrd Mat Min Sub Machines Accessed 6 | . 5 . 1 Terminals 5 | . 5 . . Fabricators . | . . . . Repair Stations . | . . . . Recycling Units . | . . . . Scanalyzers . | . . . . Garrison Access . | . . . . Total Hacks 25 | . 16 . 9 Successful 17 | . 8 . 9 Failed 8 | . 8 . . Catastrophic 1 | . 1 . . Database Lockouts . | . . . . Manual 13 | . 13 . . Terminals 16 | . 16 . . Fabricators . | . . . . Repair Stations . | . . . . Recycling Units . | . . . . Scanalyzers . | . . . . Garrison Access . | . . . . Terminal Hacks 13 | . 4 . 9 Record 8 | . . . 8 Robot Analysis 2 | . 2 . . Prototype ID Bank 1 | . 1 . . Terminal Index 1 | . 1 . . Proto ID Catalog 1 | . . . 1 Fabricator Hacks . | . . . . Repair Station Hacks . | . . . . Recycling Unit Hacks . | . . . . Scanalyzer . | . . . . Garrison Access Hacks . | . . . . Unauthorized Hacks 4 | . 4 . . Terminals 4 | . 4 . . Botnet 2 | . 2 . . Skim 2 | . 2 . . Fabricators . | . . . . Repair Stations . | . . . . Recycling Units . | . . . . Scanalyzers . | . . . . Garrison Access . | . . . . Data Cores Recovered . | . . . . Used . | . . . . Hacking Detections 5 | . 5 . . Full Trace Events . | . . . . Feedback Events . | . . . . Feedback Blocked . | . . . . Robot Schematics Acquired . | . . . . Robots Built . | . . . . Authchips . | . . . . Time . | . . . . Total Robot Build Rating . | . . . . Part Schematics Acquired . | . . . . Parts Built . | . . . . Authchips . | . . . . Time . | . . . . Total Part Build Rating . | . . . . Part Studies Acquired . | . . . . Parts Repaired . | . . . . Time . | . . . . Parts Recycled . | . . . . Recycled Matter . | . . . . Retrieved Matter . | . . . . Retrieved Components . | . . . . Parts Scanalyzed . | . . . . Part Schematics Acquired . | . . . . Parts Damaged . | . . . . Bothacking | -11 -10 -10 -10 ------------ Run | Yrd Mat Min Sub Used RIF Installer . | . . . . Robots Hacked . | . . . . Non-combat . | . . . . Combat . | . . . . Robot Hacks Applied . | . . . . Relay Couplers Released . | . . . . Fabnet Peak Effective % . | . . . . Robots Rewired . | . . . . Allies Hacked . | . . . . Hacks Repelled . | . . . . Allies | -11 -10 -10 -10 -------- Run | Yrd Mat Min Sub Total Allies 2 | . . 2 . Largest Group 2 | . . 2 2 Highest-Rated Group 56 | . . 56 56 Highest-Rated Ally 31 | . . 31 31 Total Orders . | . . . . Ally Attacks 17 | . . 12 5 Total Damage 161 | . . 126 35 Kills 3 | . . 2 1 Allies Corrupted . | . . . . Allies Melted . | . . . . Intel | -11 -10 -10 -10 ------- Run | Yrd Mat Min Sub Active Infowar (turns) 3536 | 158 1495 752 1131 Seismic 3536 | 158 1495 752 1131 Robot Analysis Total 2 | . 2 . . Derelict Logs Recovered 3 | . . 1 2 Drone Launches . | . . . . Drone Recoveries . | . . . . Exploration | -11 -10 -10 -10 ------------- Run | Yrd Mat Min Sub Turns Passed 5199 | 239 1686 1463 1811 Spaces Moved 2398 | 102 728 712 856 Core 2 | 2 . . . Treads 1823 | 100 728 712 283 Legs 573 | . . . 573 Wheels . | . . . . Hover . | . . . . Flight . | . . . . Fastest Speed 50 | 50 160 160 130 Average Speed 163 | 157 194 160 141 Slowest Speed 240 | 160 240 160 200 Overloaded Moves . | . . . . Propulsion Burnouts . | . . . . Robots Hopped . | . . . . Potential Cave-ins . | . . . . Cave-ins Triggered . | . . . . Exploration Rate (%) 64 | 7 98 102 52 Regions Visited 3 Branch Regions 2 Pre-discovered Areas 1 | . . . 1 Known Exits Taken 1 | . 1 . . Unknown Exits Taken 2 | 1 . 1 . Scrap Searched 6 | . . 2 4 Spaces Dug 13 | . . . 13 Terrain Destroyed 15 | . . 1 14 Melee 13 | . . . 13 Projectile 1 | . . . 1 AOE 1 | . . 1 . Terrain Rammed . | . . . . Walls Destroyed . | . . . . Machines Disabled . | . . . . Actions | -11 -10 -10 -10 --------- Run | Yrd Mat Min Sub Total 3324 | 136 882 991 1315 Wait 616 | . 68 247 301 Move 2395 | 101 727 711 856 Hop . | . . . . Pick Up 39 | 5 11 5 18 Fast Attach 14 | 6 1 . 7 Attach 8 | 1 1 1 5 Detach . | . . . . Swap 30 | . 13 3 14 Drop 27 | . 6 2 19 Fire 161 | 23 55 22 61 Melee 32 | . . . 32 Ram . | . . . . Kick . | . . . . Crush . | . . . . Escape Stasis . | . . . . Rewire . | . . . . Trap . | . . . . Miscellaneous 2 | . . . 2 Route ------- -11/Scrapyard -10/Materials (discovered 5 exits: *Mat x3 / *Min x2) -10/Mines (discovered 3 exits: *Mat x2 / *Sub) -10/Subcaves (discovered 3 exits: [*Mat x2] / Rec) History --------- Turn | Location | Event 10 | -11/Scrapyard | Discovered new exit (range 16) 240 | -11/Scrapyard | Entered Materials 317 | -10/Materials | Build established: Mutant 524 | -10/Materials | Discovered new exit (range 11) 543 | -10/Materials | Discovered new exit (range 15) 828 | -10/Materials | Discovered new exit (range 8) 840 | -10/Materials | Derelicts attacked the area 1037 | -10/Materials | Discovered new exit (range 16) 1575 | -10/Materials | Discovered new exit (range 9) 1876 | -10/Materials | Identified exit to Materials 1921 | -10/Materials | Identified exit to Mines 1926 | -10/Materials | Entered Mines 1927 | -10/Mines | Assembled infested the area 2299 | -10/Mines | Discovered exit to Materials (range 9) 2424 | -10/Mines | Learned 2 Materials zone layouts 2763 | -10/Mines | Discovered new exit (range 11) 2832 | -10/Mines | Discovered exit to Materials (range 10) 3389 | -10/Mines | Entered Subcaves 3389 | -10/Subcaves | Accompanied by 2 allies 3394 | -10/Subcaves | Led the pair of lost Derelicts to an unsafe place 3424 | -10/Subcaves | Identified exit to Recycling 3675 | -10/Subcaves | A swath of the cavern ceiling suddenly collapsed 3837 | -10/Subcaves | Discovered new exit (range 12) 3901 | -10/Subcaves | Visited 4L-MR0's lab 3922 | -10/Subcaves | Found Cargo Legs 3923 | -10/Subcaves | Attached Cargo Legs, gained temporary slots: Utility x2 3985 | -10/Subcaves | Shifting Twisted Machinery released Sub. Power Source 4039 | -10/Subcaves | Shifting Twisted Machinery released Battle Rifle 4168 | -10/Subcaves | Learned location of Zion (-7) 4437 | -10/Subcaves | Core integrity fell below 50% 4592 | -10/Subcaves | Shifting Twisted Machinery released Mak. Axe 4617 | -10/Subcaves | Shifting Twisted Machinery released Scrap Shield 4653 | -10/Subcaves | A swath of the cavern ceiling suddenly collapsed 4917 | -10/Subcaves | Ambushed by Subdweller buried in earth 4923 | -10/Subcaves | Core integrity fell below 20% 4971 | -10/Subcaves | Discovered new exit (range 5) 5200 | -10/Subcaves | Destroyed by CF-MPW(R) with Subdweller Laser Last Messages --------------- 05145_ Critical hit (Destroy). 05154_ Dropped Mak. Axe. 05154_ Acquired Sub. Beam Cannon. 05157_ Critical hit (Destroy). 05159_ Sub. Laser melted. 05159_ 1Y-5UD(R) destroyed. 05162_ Sub. Power Source melted. 05162_ 9I-0J3(R) destroyed. 05171_ Scrap Shield Fragment affixed to Scrap Shield (+42). 05173_ Scrap Shield Fragment affixed to Scrap Shield (+46). 05174_ Acquired 27 matter. 05176_ Subatomizers dissect the Sub. Optics. 05177_ Acquired 7 matter. 05182_ Dropped Scrap Shield. 05182_ Acquired Hcp. Storage Unit. 05186_ Acquired Sub. Laser. 05189_ Acquired Imp. Terrain Scanner. 05192_ Acquired Sub. Power Source. 05195_ Dropped Hcp. Storage Unit. 05195_ Acquired Scrap Shield. Map ----- +----------------------------------------------------+ | ?????????????????## ##??## ##??## ##?????????? | | ????????????????## #### ##### #?????????? | | ???????????????## ## # ## ##?????????? | | ???????????????# ##?????????? | | ???????????????# ##### #?????????? | | ???????????????# ##???# ### # #?????????? | | ??????????????## #????###?########?????????? | | ??????????????# #?????????????????????????? | | ??????????????# ##????????????????????????? | | ??????????????# ### ##???????????????????????? | | ??????????????# ### #???????????????????????? | | ??????????????## # #???????????????????????? | | ????????????????# #???????????????????????? | | ????????????????# ##???????????????????????? | | ????????????????# ##????????????????????????? | | ????????????????# ##?????????????????????????? | | ????????????????# #??????????????????????????? | | ????????????????# #??????????????????????????? | | ????????????????# ###????????????????????????? | | ????????????????# ##???????????????????????? | | ???????????????## #???????????????????????? | | ???????????????# #???????????????????????? | | ???????????????# ##??????????????????????? | | ???????????????# ###????????????????????? | | ???????????????## !!| #????????????????????? | | ????????????????##### !!@!##????????????????????? | | ????????????????????## */!#?????????????????????? | | ???????????####??????# &/[##?????????????????????? | | ???????????# # ###RR#######????????????????? | | ??????????# *% ! # "????????????? | | ?????????# = ! "" "" ??????????? | | ????????? ## ## ## " # """""#??????????? | | ????????????????#???##?# "####?????????????????? | | ??????????????????????? ""#????????????????????? | | ??????????????????????# " ""#????????????????????? | | ??????????????????????# "" ##????????????????????? | | ?????????????????????? # ?????????????????????? | | ????????????????????? # #?????????????????????? | | ????????????????????? #?????????????????????? | | ???????????????????? #?????????????????????? | | ????????????????????##? ?????????????????????? | | ??????????????????????? ?????????????????????? | | ???????????????????????? ?????????????????????? | | ???????????????????????? ?????????????????????? | | ?????????????????????????????????????????????????? | | ?????????????????????????????????????????????????? | | ?????????????????????????????????????????????????? | | ?????????????????????????????????????????????????? | | ?????????????????????????????????????????????????? | | ?????????????????????????????????????????????????? | +----------------------------------------------------+ Best States ------------- Heat Dissipation 25 Energy Generation 15 Energy Capacity 250 Matter Stores 300 Matter Capacity 300 Sight Range 16 Terrain Scan Density 10 Armor Coverage 800 Evasion (%) 55 Recoil Reduction 2 Item Schematics ----------------- None Robot Schematics ------------------ None Fabricated ------------ Nothing Repaired ---------- Nothing Studied --------- None Alien Tech Used ----------------- None Achievements -------------- None Challenges ------------ None Game ------ Seed ColdQuantumConstruct Manual? 0 Play Time 00:27:12 Cumulative 76.8 hours Start 2026.01.28 @ 21:38:59 End 2026.01.28 @ 23:15:54 Sessions 1 Manual Loads 0 Difficulty Rogue Special Mode None Game No. 35 Rogue 35 Adventurer 0 Explorer 0 Win Type - Total 1 Types 1/0/0/0/0/0/0/0/0/0 Lore% 53 Gallery% 59 Achievement% 51 Wizard Run 0 Options --------- Layout 0 ASCII 0 Keyboard 0 Movement Mouse Keybinds 0 Fullscreen 1 Font 24/Smallcaps Map View 183x50 Zoom Use 0% Tactical HUD 1 Map Filters NONE Filters NONE Steam 1 RUN: 92449097-ef47-4c94-8207-4808468ac4cd